bitfinex/quotes_BTCUSD_20241205
["timestamp","ask_amount","ask_price","bid_price","bid_amount"]
[1733361273117,0.1256,98100.0,98073.0,0.00180467]
[1733361273118,0.10471259,98099.0,98073.0,0.00180467]
[1733361273339,0.15,98098.0,98079.0,0.173328]
[1733361273593,0.15,98098.0,98069.0,0.02]
[1733361273594,0.25471259,98098.0,98080.0,0.173327]
[1733361273826,0.25471259,98098.0,98081.0,0.173326]
[1733361274342,0.203893,98091.0,98069.0,0.02]
[1733361274554,0.159,98096.0,98069.0,0.02]
[1733361274555,0.0769,98088.0,98069.0,0.02]
[1733361274785,0.15,98086.0,98069.0,0.02]
[1733361275018,0.15021259,98085.0,98069.0,0.02]
[1733361277292,0.0816,98084.0,98069.0,0.02]
[1733361277514,0.28631259,98070.0,98069.0,0.02]
[1733361277735,0.48241259,98070.0,98069.0,0.02]
[1733361278892,0.38241259,98070.0,98069.0,0.02]
[1733361279153,0.48241259,98070.0,98069.0,0.02028784]
[1733361279428,0.49141259,98070.0,98069.0,0.02028784]
[1733361279910,0.52266411,98070.0,98069.0,0.02028784]
[1733361280582,0.49141259,98070.0,98069.0,0.02028784]
[1733361281464,0.39141259,98070.0,98069.0,0.02028784]
[1733361283064,0.41015058,98070.0,98069.0,0.02028784]
[1733361283304,0.26015058,98070.0,98069.0,0.02028784]
[1733361285043,0.25115058,98070.0,98069.0,0.02028784]
[1733361285488,0.26015058,98070.0,98069.0,0.02028784]
[1733361286635,0.25115058,98070.0,98069.0,0.02115274]
[1733361286859,0.26015058,98070.0,98069.0,0.02115274]
[1733361287974,0.63893957,98070.0,98069.0,0.02115274]
[1733361288190,0.633638,98069.0,98068.0,0.00058172]
[1733361288445,1.2045447,98069.0,98068.0,0.00058172]
[1733361288663,0.330381,98048.0,98046.0,0.0055553]
[1733361288874,0.45383158,98048.0,98046.0,0.0055553]
[1733361289324,0.1,98047.0,98046.0,0.0014203]
[1733361289554,0.20471259,98047.0,98046.0,0.0014203]
[1733361289761,0.22345058,98047.0,98046.0,0.0014203]
[1733361290228,0.12345058,98047.0,98046.0,0.0014203]
[1733361290880,0.14385026,98047.0,98046.0,0.0014203]
[1733361291154,0.13411227,98047.0,98046.0,0.0014203]
[1733361291585,0.11371259,98047.0,98046.0,0.0014203]
[1733361293999,0.14508385,98047.0,98046.0,0.0014203]
[1733361294439,0.11371259,98047.0,98046.0,0.0014203]
[1733361295616,0.009,98047.0,98046.0,0.0014203]
[1733361296766,0.0473,98094.0,98068.0,0.163152]
[1733361296983,0.00173,98097.0,98068.0,0.163152]
[1733361297240,0.00173,98097.0,98068.0,0.31495681]
[1733361297448,0.00173,98097.0,98096.0,0.163105]
[1733361298793,0.00173,98097.0,98094.0,0.163108]
[1733361299653,0.00173,98097.0,98090.0,0.163115]
[1733361300404,0.00173,98097.0,98068.0,0.33339431]
[1733361300405,0.10471259,98096.0,98068.0,0.15058172]
[1733361300621,0.00173,98097.0,98068.0,0.15058172]
[1733361300622,0.00673,98097.0,98093.0,0.163109]
[1733361300840,0.00173,98097.0,98093.0,0.326218]
[1733361301269,0.00673,98097.0,98093.0,0.326218]
[1733361301983,0.01573,98097.0,98093.0,0.327218]
[1733361302214,0.00173,98097.0,98093.0,0.326218]
[1733361302470,0.00573,98097.0,98093.0,0.326218]
[1733361302702,0.00573,98097.0,98095.0,0.163107]
[1733361303225,0.00573,98097.0,98073.0,0.0828]
[1733361303226,0.17971259,98096.0,98068.0,0.00058172]
[1733361303476,0.17971259,98096.0,98094.0,0.163107]
[1733361303477,0.10471259,98096.0,98094.0,0.163107]
[1733361304136,0.00573,98097.0,98096.0,0.163105]
[1733361304388,0.00173,98097.0,98096.0,0.163105]
[1733361305372,0.01073,98097.0,98096.0,0.16590915]
[1733361305609,0.01073,98097.0,98096.0,0.16490915]
[1733361305834,0.0803,98137.0,98097.0,0.292714]
[1733361306055,0.10471259,98136.0,98103.0,0.1]
[1733361306320,0.10471259,98136.0,98088.0,0.1]
[1733361306321,0.040806,98152.0,98105.0,0.15]
[1733361306531,0.10173,98166.0,98105.0,0.15]
[1733361306532,0.10471259,98151.0,98146.0,0.14224208]
[1733361306967,0.10471259,98151.0,98146.0,0.28488608]
[1733361307399,0.10471259,98151.0,98146.0,0.28505978]
[1733361307618,0.009,98152.0,98146.0,0.28505978]
[1733361307829,0.00173,98166.0,98146.0,0.0001737]
[1733361307830,0.10471259,98151.0,98146.0,0.0001737]
[1733361308308,0.11371259,98151.0,98146.0,0.0011737]
[1733361308522,0.11371259,98151.0,98146.0,0.0001737]
[1733361308965,0.11371259,98151.0,98146.0,0.0011737]
[1733361309202,0.11296194,98151.0,98147.0,0.142643]
[1733361309422,0.11296194,98151.0,98146.0,0.0011737]
[1733361310314,0.10396194,98151.0,98146.0,0.0001737]
[1733361310527,0.11296194,98151.0,98146.0,0.0011737]
[1733361310736,0.11296194,98151.0,98146.0,0.0001737]
[1733361311157,0.11296194,98151.0,98146.0,0.0011737]
[1733361311158,0.12196194,98151.0,98146.0,0.0011737]
[1733361311645,0.12196194,98151.0,98147.0,0.142643]
[1733361311893,0.00173,98166.0,98146.0,0.0001737]
[1733361312131,0.10471259,98164.0,98159.0,0.142624]
[1733361312556,0.10471259,98164.0,98151.0,0.142637]
[1733361312777,0.10471259,98164.0,98159.0,0.142624]
[1733361313246,0.00173,98166.0,98146.0,0.0011737]
[1733361313247,0.00173,98166.0,98161.0,0.142622]
[1733361313490,0.00173,98166.0,98161.0,0.285244]
[1733361314421,0.00173,98166.0,98161.0,0.286244]
[1733361314422,0.0107304,98165.0,98161.0,0.286244]
[1733361314857,0.0107304,98165.0,98157.0,0.142627]
[1733361314858,0.0017304,98165.0,98157.0,0.142627]
[1733361315086,0.0017304,98165.0,98146.0,0.0001737]
[1733361315087,0.0057304,98165.0,98146.0,0.0001737]
[1733361315348,0.0057304,98165.0,98154.0,0.142632]
[1733361315574,0.0017304,98165.0,98154.0,0.142632]
[1733361315788,0.0017304,98165.0,98146.0,0.0001737]
[1733361316043,0.0017304,98165.0,98159.0,0.224123]
[1733361316917,0.0057304,98165.0,98159.0,0.224123]
[1733361317165,0.0017304,98165.0,98159.0,0.224123]
[1733361317636,0.004,98165.0,98161.0,0.11165568]
[1733361317867,0.0016802,98168.0,98163.0,0.15]
[1733361318123,0.0016802,98168.0,98164.0,0.21857146]
[1733361318336,0.0016802,98168.0,98166.0,0.112055]
[1733361318558,0.0016802,98168.0,98167.0,0.10651539]
[1733361318777,0.0016802,98168.0,98166.0,0.112055]
[1733361319023,0.0016802,98168.0,98164.0,0.112056]
[1733361319463,0.0016802,98168.0,98155.0,0.112066]
[1733361319686,0.0016802,98168.0,98165.0,0.112056]
[1733361320124,0.0016802,98168.0,98165.0,0.224112]
[1733361321029,0.0066802,98168.0,98165.0,0.224112]
[1733361321745,0.00144252,98168.0,98165.0,0.224112]
[1733361322259,0.00144252,98168.0,98165.0,0.112056]
[1733361322687,0.00144252,98168.0,98167.0,0.112053]
[1733361322921,0.00144252,98168.0,98165.0,0.112056]
[1733361323407,0.00144252,98168.0,98165.0,0.224112]
[1733361323854,0.00173,98169.0,98146.0,0.0001737]
[1733361323855,0.00173,98169.0,98166.0,0.112054]
[1733361324078,0.00173,98169.0,98168.0,0.262052]
[1733361324358,0.0017298,98192.0,98168.0,0.262052]
[1733361324359,0.0017298,98192.0,98174.0,0.112045]
[1733361324834,0.0246892,98175.0,98174.0,0.112045]
[1733361325069,0.0017298,98192.0,98191.0,0.112026]
[1733361325291,0.0824,98228.0,98191.0,0.112026]
[1733361325292,0.001929,98239.0,98238.0,0.111972]
[1733361326490,0.0025118,98239.0,98238.0,0.111972]
[1733361328160,0.0045118,98239.0,98238.0,0.111972]
[1733361333369,0.0025118,98239.0,98238.0,0.111972]
[1733361333841,0.0045118,98239.0,98238.0,0.111972]
[1733361334261,0.0045118,98239.0,98238.0,0.116972]
[1733361334474,0.0045118,98239.0,98238.0,0.266972]
[1733361336277,0.0045118,98239.0,98238.0,0.47168459]
[1733361336725,0.00173,98263.0,98249.0,0.101782]
[1733361336956,0.00103925,98250.0,98249.0,0.35649459]
[1733361337228,0.00173,98263.0,98258.0,0.251772]
[1733361337229,1e-06,98259.0,98258.0,0.251772]
[1733361337475,0.014135,98290.0,98278.0,0.101752]
[1733361337476,0.0001394,98279.0,98278.0,0.101752]
[1733361337992,0.0001394,98279.0,98278.0,0.10160015]
[1733361340816,0.0001394,98279.0,98278.0,0.10560015]
[1733361341259,0.014135,98290.0,98278.0,0.10560015]
[1733361341260,0.0090244,98290.0,98289.0,0.10174]
[1733361341915,0.0089844,98290.0,98287.0,0.101742]
[1733361342346,0.0089844,98290.0,98287.0,0.203484]
[1733361342565,0.00915924,98290.0,98287.0,0.203484]
[1733361343228,0.01015924,98290.0,98287.0,0.203484]
[1733361343485,0.00915924,98290.0,98289.0,0.10174]
[1733361346026,0.00915924,98290.0,98289.0,0.10574]
[1733361346493,0.00915924,98290.0,98289.0,0.10174]
[1733361346735,0.00743182,98290.0,98289.0,0.10374]
[1733361346973,0.00743182,98290.0,98289.0,0.10174]
[1733361347186,0.00743182,98290.0,98289.0,0.10474]
[1733361347668,0.00743182,98290.0,98289.0,0.10174]
[1733361347884,0.00743182,98290.0,98289.0,0.10574]
[1733361349071,0.00743182,98290.0,98289.0,0.004]
[1733361349567,0.11214441,98290.0,98289.0,0.004]
[1733361349795,0.30635913,98290.0,98289.0,0.004]
[1733361350009,0.40635913,98290.0,98289.0,0.004]
[1733361350262,0.40635913,98290.0,98233.0,0.040742]
[1733361350263,0.15,98277.0,98236.0,0.101795]
[1733361350486,0.15,98277.0,98224.0,0.0464]
[1733361350487,0.15,98275.0,98220.0,0.040747]
[1733361350708,0.203547,98258.0,98237.0,0.101794]
[1733361350929,0.10471259,98257.0,98237.0,0.101794]
[1733361351192,0.10471259,98257.0,98241.0,0.10179]
[1733361351437,0.10471259,98257.0,98217.0,0.0751]
[1733361351652,0.203549,98256.0,98233.0,0.101798]
[1733361351887,0.18471259,98255.0,98233.0,0.101798]
[1733361352103,0.15,98273.0,98226.0,0.1]
[1733361352104,0.10471259,98254.0,98226.0,0.1]
[1733361352315,0.10471259,98254.0,98233.0,0.0005828]
[1733361352553,0.203558,98252.0,98233.0,0.0005828]
[1733361352815,0.10471259,98251.0,98233.0,0.0005828]
[1733361353266,0.049,98250.0,98233.0,0.0005828]
[1733361353487,0.203574,98245.0,98233.0,0.0005828]
[1733361353706,0.203576,98243.0,98233.0,0.0005828]
[1733361353944,0.203574,98245.0,98233.0,0.0005828]
[1733361353945,0.10471259,98242.0,98233.0,0.0005828]
[1733361354177,0.10471259,98242.0,98233.0,0.0015828]
[1733361354617,0.10471259,98242.0,98233.0,0.0005828]
[1733361355585,0.10471259,98242.0,98236.0,0.0017296]
[1733361356033,0.203561,98251.0,98236.0,0.0017296]
[1733361356264,0.0466,98259.0,98236.0,0.0017296]
[1733361356265,0.25471259,98250.0,98236.0,0.0017296]
[1733361356473,0.003,98242.0,98236.0,0.0017296]
[1733361357155,0.006,98242.0,98236.0,0.0017296]
[1733361357673,0.15,98240.0,98236.0,0.0017296]
[1733361357916,0.15,98238.0,98236.0,0.0017296]
[1733361358129,0.25471259,98237.0,98236.0,0.0017296]
[1733361359465,0.15,98251.0,98236.0,0.0017296]
[1733361359683,0.006,98238.0,98236.0,0.0027296]
[1733361359901,0.006,98238.0,98236.0,0.0017296]
[1733361360386,0.006,98237.0,98236.0,0.0027296]
[1733361360665,0.006,98237.0,98236.0,0.0017296]
[1733361360877,0.11071259,98237.0,98236.0,0.0027296]
[1733361361113,0.10471259,98237.0,98236.0,0.0017296]
[1733361362764,0.10471259,98237.0,98236.0,0.0027296]
[1733361362988,0.10471259,98237.0,98236.0,0.0017296]
[1733361362989,0.18131259,98237.0,98236.0,0.0017296]
[1733361363241,0.18131259,98237.0,98236.0,0.0027296]
[1733361363242,0.38471259,98237.0,98236.0,0.0027296]
[1733361363677,0.38471259,98237.0,98233.0,0.0005828]
[1733361363934,0.38471259,98237.0,98179.0,0.02017806]
[1733361363935,0.10471259,98234.0,98179.0,0.1]
[1733361364162,0.557182,98236.0,98178.0,0.11204]
[1733361364163,0.35363,98217.0,98178.0,0.11204]
[1733361364385,0.45834259,98217.0,98180.0,0.1]
[1733361365092,0.45834259,98217.0,98183.0,0.1]
[1733361365315,0.45834259,98217.0,98216.0,0.0002044]
[1733361366201,0.10471259,98217.0,98216.0,0.0002044]
[1733361366557,0.10471259,98217.0,98216.0,0.0012044]
[1733361366788,0.10471259,98217.0,98216.0,0.0002044]
[1733361367004,0.11071259,98217.0,98216.0,0.0012044]
[1733361368202,0.006,98217.0,98216.0,0.1132024]
[1733361369320,0.006,98217.0,98216.0,0.1122024]
[1733361369544,0.00058269,98237.0,98218.0,0.1]
[1733361369785,0.00058269,98237.0,98221.0,0.111992]
[1733361370005,0.00058269,98237.0,98218.0,0.00025018]
[1733361370006,0.00058269,98237.0,98223.0,0.11199]
[1733361370228,0.00058269,98237.0,98222.0,0.1]
[1733361370531,0.00058269,98237.0,98233.0,0.211978]
[1733361370765,0.00058269,98237.0,98235.0,0.111976]
[1733361370991,0.00058269,98237.0,98236.0,0.1]
[1733361371232,0.00058269,98237.0,98234.0,0.1]
[1733361371462,0.00058269,98237.0,98235.0,0.1]
[1733361372160,0.00058269,98237.0,98235.0,0.211975]
[1733361372626,0.00058269,98237.0,98235.0,0.1]
[1733361372627,0.00158269,98237.0,98235.0,0.1]
[1733361373091,0.00058269,98237.0,98235.0,0.211975]
[1733361373306,0.00158269,98237.0,98236.0,0.1]
[1733361373790,0.00158269,98237.0,98235.0,0.1]
[1733361374313,0.00058269,98237.0,98227.0,0.00025015]
[1733361374527,0.00058269,98237.0,98208.0,0.0798]
[1733361374528,0.203604,98230.0,98228.0,0.00025015]
[1733361375249,0.10471259,98229.0,98228.0,0.00025015]
[1733361376091,0.10471259,98229.0,98203.0,0.1]
[1733361376094,0.15,98226.0,98203.0,0.1]
[1733361376287,0.15,98222.0,98190.0,0.001726]
[1733361376535,0.203662,98202.0,98190.0,0.001726]
[1733361376698,0.10471259,98221.0,98190.0,0.101726]
[1733361377081,0.203654,98206.0,98190.0,0.101726]
[1733361377288,0.10471259,98221.0,98195.0,0.1]
[1733361377493,0.209612,98226.0,98204.0,0.1]
[1733361377846,0.15,98237.0,98204.0,0.1]
[1733361377847,0.10471259,98225.0,98204.0,0.1]
[1733361378007,0.006,98221.0,98204.0,0.1]
[1733361378486,0.203624,98220.0,98204.0,0.1]
[1733361379264,0.30832759,98225.0,98204.0,0.1]
[1733361379493,0.203624,98221.0,98204.0,0.1]
[1733361379703,0.10471259,98225.0,98204.0,0.101]
[1733361379909,0.203638,98214.0,98204.0,0.1]
[1733361380112,0.10471259,98225.0,98204.0,0.1]
[1733361380325,0.006,98220.0,98204.0,0.101]
[1733361380549,0.203626,98219.0,98204.0,0.1]
[1733361380758,0.203626,98219.0,98204.0,0.101]
[1733361381265,0.203626,98219.0,98204.0,0.1]
[1733361381266,0.203636,98215.0,98204.0,0.1]
[1733361381482,0.203626,98219.0,98204.0,0.1]
[1733361381687,0.203645,98211.0,98204.0,0.1]
[1733361382119,0.203645,98211.0,98202.0,0.1]
[1733361382364,0.10471259,98210.0,98191.0,0.1]
[1733361382569,0.10471259,98210.0,98204.0,0.001]
[1733361382797,0.10471259,98210.0,98190.0,0.001726]
[1733361382798,0.203684,98191.0,98190.0,0.001726]
[1733361383497,0.203678,98194.0,98190.0,0.001726]
[1733361383932,0.203682,98192.0,98190.0,0.001726]
[1733361384346,0.203682,98192.0,98190.0,0.002726]
[1733361384993,0.00058233,98194.0,98190.0,0.002726]
[1733361385695,0.00058233,98194.0,98190.0,0.001726]
[1733361385956,0.00858233,98194.0,98190.0,0.002726]
[1733361386184,0.00858233,98194.0,98190.0,0.001726]
[1733361386637,0.01558233,98194.0,98190.0,0.001726]
[1733361386885,0.20368,98193.0,98190.0,0.001726]
[1733361387095,0.30839259,98193.0,98190.0,0.001726]
[1733361387298,0.00758233,98194.0,98190.0,0.002726]
[1733361387538,0.00758233,98194.0,98192.0,0.1]
[1733361387539,0.00058233,98194.0,98192.0,0.1]
[1733361388875,0.00758233,98194.0,98190.0,0.002726]
[1733361389083,0.00758233,98194.0,98192.0,0.1]
[1733361389084,0.00058233,98194.0,98192.0,0.1]
[1733361390403,0.00058233,98194.0,98190.0,0.001726]
[1733361390825,0.00058233,98194.0,98191.0,0.1]
[1733361391287,0.00058233,98194.0,98192.0,0.0017306]
[1733361392375,0.00858233,98194.0,98192.0,0.0017306]
[1733361393733,0.00739847,98194.0,98192.0,0.0017306]
[1733361395037,0.09017797,98238.0,98192.0,0.0017306]
[1733361395038,0.252395,98234.0,98192.0,0.0017306]
[1733361395322,0.13614229,98227.0,98206.0,0.1]
[1733361395539,0.10461488,98227.0,98211.0,0.1]
[1733361395753,0.203592,98236.0,98216.0,0.111997]
[1733361395988,0.203592,98236.0,98217.0,0.111996]
[1733361395989,0.10471259,98235.0,98217.0,0.111996]
[1733361396252,0.10471259,98235.0,98225.0,0.111987]
[1733361396463,0.009,98228.0,98225.0,0.223974]
[1733361396686,0.0008653,98237.0,98227.0,0.111985]
[1733361397122,0.0008653,98237.0,98227.0,0.22397]
[1733361397334,0.0008653,98237.0,98226.0,0.1]
[1733361397554,0.0008653,98237.0,98227.0,0.111985]
[1733361397765,0.0008653,98237.0,98227.0,0.11215975]
[1733361398012,0.009,98236.0,98229.0,0.111983]
[1733361398211,0.009,98236.0,98227.0,0.11215975]
[1733361398212,0.009,98236.0,98235.0,0.1]
[1733361398427,0.0008653,98237.0,98236.0,0.1]
[1733361398682,0.0008653,98237.0,98236.0,0.439075]
[1733361398683,0.00906359,98237.0,98236.0,0.439075]
[1733361399161,6.359e-05,98237.0,98236.0,0.64378759]
[1733361399417,0.000865,98259.0,98258.0,0.21195]
[1733361399864,0.000865,98259.0,98258.0,0.2137513]
[1733361400335,0.000865,98259.0,98258.0,0.21195]
[1733361401391,0.000865,98259.0,98258.0,0.21375119]
[1733361401646,0.000865,98259.0,98258.0,0.21675119]
[1733361401858,0.000865,98259.0,98258.0,0.21195]
[1733361402074,0.001865,98259.0,98258.0,0.21975119]
[1733361402278,0.001865,98259.0,98258.0,0.21795]
[1733361402494,0.001865,98259.0,98258.0,0.21195]
[1733361402732,0.002865,98259.0,98258.0,0.21795]
[1733361402967,0.001865,98259.0,98258.0,0.21195]
[1733361403422,0.001865,98259.0,98258.0,0.21375119]
[1733361403643,0.001865,98259.0,98258.0,0.31846378]
[1733361403848,0.001865,98259.0,98258.0,0.31666259]
[1733361404513,0.001865,98259.0,98258.0,0.46666259]
[1733361404931,0.002865,98259.0,98258.0,0.47266259]
[1733361405139,0.000865,98259.0,98258.0,0.46666259]
[1733361405603,0.000865,98259.0,98258.0,0.55196259]
[1733361405604,0.001865,98259.0,98258.0,0.55196259]
[1733361405804,0.001865,98259.0,98258.0,0.54596259]
[1733361406037,0.001865,98259.0,98258.0,0.55296259]
[1733361406254,0.002865,98259.0,98258.0,0.69392436]
[1733361406482,0.203426,98316.0,98258.0,0.69392436]
[1733361406483,1.0,98334.0,98295.0,0.1]
[1733361406692,1.0,98334.0,98312.0,0.1]
[1733361406693,0.10471259,98328.0,98312.0,0.1]
[1733361406981,1.0,98334.0,98296.0,0.10651329]
[1733361406982,0.00064342,98329.0,98323.0,0.111875]
[1733361407181,0.00064342,98329.0,98323.0,0.22375]
[1733361407424,0.00064342,98329.0,98326.0,0.1]
[1733361407898,0.00064342,98329.0,98308.0,0.02050801]
[1733361407899,0.00064342,98329.0,98318.0,0.1]
[1733361408129,0.00064342,98329.0,98313.0,0.1]
[1733361408130,0.10471259,98328.0,98313.0,0.1]
[1733361408550,0.00064342,98329.0,98315.0,0.1]
[1733361408733,0.10635601,98329.0,98315.0,0.1]
[1733361409172,0.10535601,98329.0,98315.0,0.1]
[1733361409409,0.009,98328.0,98318.0,0.1]
[1733361409646,0.009,98328.0,98322.0,0.111877]
[1733361409861,0.00064342,98329.0,98322.0,0.223754]
[1733361410110,0.00064342,98329.0,98328.0,0.11187]
[1733361410343,0.00064342,98329.0,98328.0,0.21187]
[1733361411064,0.00864342,98329.0,98328.0,0.21187]
[1733361411493,0.00064342,98329.0,98328.0,0.21187]
[1733361412145,0.00764342,98329.0,98328.0,0.21287]
[1733361412629,0.00764342,98329.0,98328.0,0.21187]
[1733361412630,0.00064342,98329.0,98328.0,0.21187]
[1733361412854,0.00464342,98329.0,98328.0,0.21187]
[1733361413293,1.0,98334.0,98328.0,0.21187]
[1733361413294,0.99967507,98334.0,98333.0,0.211864]
[1733361413523,0.99984994,98334.0,98333.0,0.211864]
[1733361415209,0.99984994,98334.0,98333.0,0.56657659]
[1733361415210,1.00184994,98334.0,98333.0,0.56657659]
[1733361415423,0.99984994,98334.0,98333.0,0.56657659]
[1733361415670,0.92374994,98334.0,98333.0,0.733742]
[1733361416143,0.92374994,98334.0,98333.0,0.69577659]
[1733361416631,0.92374994,98334.0,98333.0,0.64967659]
[1733361417316,0.92374994,98334.0,98333.0,0.55167659]
[1733361417556,0.92374994,98334.0,98333.0,0.65167659]
[1733361417767,0.92174994,98334.0,98333.0,0.64967659]
[1733361417989,0.92174994,98334.0,98333.0,0.65367659]
[1733361418204,0.92174994,98334.0,98333.0,0.67368016]
[1733361418423,0.92174994,98334.0,98333.0,0.66968016]
[1733361418646,0.92174994,98334.0,98333.0,0.67368016]
[1733361419084,0.80615018,98334.0,98333.0,0.76968016]
[1733361419323,0.0002,98339.0,98338.0,0.411859]
[1733361419528,0.0008654,98358.0,98357.0,0.211837]
[1733361419740,0.0008654,98358.0,98357.0,0.56834879]
[1733361419963,4e-07,98359.0,98358.0,0.45]
[1733361420225,0.08884641,98415.0,98378.0,0.35]
[1733361420450,0.0785,98415.0,98378.0,0.45471259]
[1733361420678,0.0003747,98379.0,98378.0,0.48912466]
[1733361421152,0.0003747,98379.0,98378.0,0.45471259]
[1733361421364,0.0003747,98379.0,98378.0,0.35471259]
[1733361421582,0.0013747,98379.0,98378.0,0.109]
[1733361421869,0.0013747,98379.0,98378.0,0.1]
[1733361421870,0.0003747,98379.0,98378.0,0.1]
[1733361422099,0.0003747,98379.0,98378.0,0.109]
[1733361422332,0.0013747,98379.0,98378.0,0.009]
[1733361422970,0.0003747,98379.0,98368.0,0.1]
[1733361423190,0.203289,98382.0,98374.0,0.1]
[1733361423404,0.203303,98375.0,98368.0,0.1]
[1733361423669,0.10471259,98381.0,98365.0,0.0001747]
[1733361423887,0.07654525,98383.0,98365.0,0.0001747]
[1733361423888,0.203322,98366.0,98365.0,0.0001747]
[1733361424138,0.30803459,98366.0,98365.0,0.0001747]
[1733361424850,0.203309,98372.0,98365.0,0.0011747]
[1733361425072,0.0494,98373.0,98365.0,0.0011747]
[1733361425318,0.1991,98397.0,98370.0,0.111821]
[1733361425564,0.203264,98395.0,98373.0,0.1]
[1733361425782,0.0491,98397.0,98367.0,0.111825]
[1733361425783,0.0491,98397.0,98384.0,0.1]
[1733361426302,0.01372195,98388.0,98385.0,0.111805]
[1733361426554,0.01372195,98388.0,98387.0,0.1]
[1733361427274,0.01372195,98388.0,98387.0,0.20651141]
[1733361427518,0.01372195,98388.0,98387.0,0.20471259]
[1733361427756,0.01572195,98388.0,98387.0,0.20471259]
[1733361428002,0.01372195,98388.0,98387.0,0.35651139]
[1733361428243,0.01372195,98388.0,98387.0,0.45471259]
[1733361428484,0.01372195,98388.0,98387.0,0.45771259]
[1733361428749,0.00872195,98388.0,98387.0,0.45771259]
[1733361429002,0.0002,98399.0,98398.0,0.26179]
[1733361429226,0.0002,98399.0,98398.0,0.56650259]
[1733361429721,0.0008654,98433.0,98398.0,0.56650259]
[1733361429722,0.0008654,98433.0,98418.0,0.211768]
[1733361429956,0.0008654,98433.0,98418.0,0.66827854]
[1733361430188,0.0008654,98433.0,98418.0,0.66648059]
[1733361430436,0.00037467,98419.0,98418.0,0.66648059]
[1733361431425,0.0008654,98433.0,98425.0,0.21176]
[1733361431672,0.0008654,98433.0,98425.0,0.31827053]
[1733361431917,0.0008654,98433.0,98425.0,0.31647259]
[1733361432397,0.0008654,98433.0,98427.0,0.1]
[1733361432673,0.0008654,98433.0,98427.0,0.20651043]
[1733361433720,0.0008654,98433.0,98427.0,0.40651043]
[1733361433981,0.0008654,98433.0,98427.0,0.40471259]
[1733361434447,0.0008654,98433.0,98427.0,0.55471259]
[1733361434690,0.0002,98439.0,98438.0,0.211745]
[1733361434931,0.0002,98439.0,98438.0,0.31645759]
[1733361435393,0.00035605,98465.0,98464.0,0.1]
[1733361435642,0.00093842,98465.0,98464.0,0.1]
[1733361435899,0.00093842,98465.0,98464.0,0.211715]
[1733361436601,0.02393842,98465.0,98464.0,0.211715]
[1733361436838,0.02893842,98465.0,98464.0,0.211715]
[1733361437340,0.02393842,98465.0,98464.0,0.211715]
[1733361438323,0.03293842,98465.0,98464.0,0.211715]
[1733361438564,0.03293842,98465.0,98464.0,0.31642759]
[1733361438798,0.03397007,98465.0,98464.0,0.31642759]
[1733361439047,0.03397007,98465.0,98454.0,0.111727]
[1733361439258,0.03397007,98465.0,98464.0,0.1]
[1733361439472,0.03389675,98465.0,98464.0,0.1]
[1733361439710,0.02889675,98465.0,98464.0,0.1]
[1733361440169,0.03289675,98465.0,98464.0,0.1]
[1733361441808,0.03289675,98465.0,98449.0,0.111732]
[1733361441809,0.03289675,98465.0,98463.0,0.1]
[1733361442069,0.03289675,98465.0,98460.0,0.1]
[1733361442070,0.023,98463.0,98460.0,0.1]
[1733361442314,0.023,98461.0,98460.0,0.1]
[1733361442543,0.023,98461.0,98459.0,0.1]
[1733361442791,0.023,98460.0,98459.0,0.1]
[1733361443008,0.20313,98459.0,98451.0,0.1]
[1733361443242,0.01,98465.0,98454.0,0.1]
[1733361443243,0.023,98458.0,98454.0,0.1]
[1733361443469,0.023,98458.0,98457.0,0.1]
[1733361443691,0.00100734,98466.0,98458.0,0.111722]
[1733361443692,0.001,98463.0,98458.0,0.111722]
[1733361443929,0.003,98461.0,98460.0,0.21172]
[1733361444159,0.003,98461.0,98460.0,0.31822993]
[1733361444384,0.00118187,98466.0,98465.0,0.111714]
[1733361444607,0.00118187,98466.0,98465.0,0.21822392]
[1733361444831,0.00118187,98466.0,98465.0,0.21642659]
[1733361446416,0.00118187,98466.0,98465.0,0.31642659]
[1733361447108,0.03018187,98466.0,98465.0,0.31642659]
[1733361447621,0.02818187,98466.0,98465.0,0.31642659]
[1733361447907,0.02818187,98466.0,98465.0,0.32142659]
[1733361447908,0.02418187,98466.0,98465.0,0.32142659]
[1733361451641,0.02418187,98466.0,98465.0,0.42142659]
[1733361451857,0.00118187,98466.0,98465.0,0.42142659]
[1733361452062,0.00118187,98466.0,98465.0,0.32142659]
[1733361452289,0.00118187,98466.0,98465.0,0.42142659]
[1733361452730,0.00118187,98466.0,98465.0,0.32142659]
[1733361452934,0.00118187,98466.0,98465.0,0.105]
[1733361453933,0.00118187,98466.0,98449.0,0.111732]
[1733361453934,0.00118187,98466.0,98464.0,0.1]
[1733361454220,0.226117,98465.0,98464.0,0.1]
[1733361455043,0.023,98465.0,98464.0,0.1]
[1733361456044,0.023,98464.0,98459.0,0.1]
[1733361456261,0.023,98464.0,98452.0,0.111728]
[1733361456262,0.406243,98463.0,98462.0,0.1]
[1733361456475,0.203121,98463.0,98459.0,0.1]
[1733361456711,0.203121,98463.0,98443.0,0.111739]
[1733361456712,0.0755,98462.0,98453.0,0.1]
[1733361456934,0.203127,98461.0,98457.0,0.08]
[1733361457163,0.0755,98462.0,98457.0,0.08]
[1733361457393,0.22612,98464.0,98463.0,0.08]
[1733361457394,0.023,98464.0,98463.0,0.08]
[1733361459422,0.203117,98465.0,98463.0,0.08]
[1733361459619,0.00118187,98466.0,98458.0,0.08]
[1733361459620,0.002,98464.0,98458.0,0.08]
[1733361459833,0.002,98464.0,98463.0,0.081]
[1733361460543,0.00118187,98466.0,98465.0,0.08]
[1733361460760,0.00204517,98466.0,98465.0,0.08]
[1733361461612,0.00204517,98466.0,98465.0,0.08179742]
[1733361461836,0.00204517,98466.0,98465.0,0.18651001]
[1733361463270,0.00404517,98466.0,98465.0,0.18651001]
[1733361463776,0.00204517,98466.0,98465.0,0.18651001]
[1733361464001,0.00204517,98466.0,98465.0,0.18751001]
[1733361464204,0.00404517,98466.0,98465.0,0.18651001]
[1733361464657,0.00204517,98466.0,98465.0,0.19071259]